[Event "18th Prague Open-A 2019"]
[Site "Prague"]
[Date "2019.01.17"]
[Round "8"]
[White "Lalic, Bogdan"]
[Black "Bednar, Marcel"]
[Result "1-0"]
[ECO "E68"]
[WhiteElo "2418"]
[BlackElo "2268"]
[Annotator "NA"]
[PlyCount "83"]
[EventDate "2019.01.11"]
[EventType "swiss"]
[EventCountry "CZE"]
[SourceTitle "playchess.com"]
[Source "ChessBase"]
[SourceQuality "1"]
[TimeControl "40/5400+30:1800+30"]

1. d4 {[%emt 0:03:51]} Nf6 {[%emt 0:00:00]} 2. c4 {[%emt 0:00:04]} g6 {[%emt 0:00:00]} 3. Nf3 {[%emt 0:00:06]} Bg7 {[%emt 0:00:00]} 4. g3 {[%emt 0:00:06]} O-O {[%emt 0:03:39]} 5. Bg2 {[%emt 0:00:10]} d6 {[%emt 0:01:01]} 6. Nc3 {[%emt 0:00:07]} Nbd7 {[%emt 0:01:02]} 7. O-O {[%emt 0:00:12]} e5 {[%emt 0:00:23]} 8. e4 {[%emt 0:00:14]} c6 {[%emt 0:01:02]} 9. Be3 {[%emt 0:00:18]} Ng4 {[%emt 0:02:58]} 10. Bg5 {[%emt 0:00:07]} f6 {[%emt 0:01:54]} 11. Bd2 {[%emt 0:00:25]} f5 {[%emt 0:01:22]} 12. exf5 {[%emt 0:02:54]} gxf5 {[%emt 0:02:32]} 13. Ne2 {[%emt 0:01:00]} Qe8 {[%emt 0:11:38]} 14. Nh4 {[%emt 0:13:40]} Ndf6 {[%emt 0:06:38]} 15. Bb4 {[%emt 0:02:11]} Ne4 {[%emt 0:13:08]} 16. f3 {[%emt 0:22:24]} Ne3 {[%emt 0:06:05]} 17. Qd3 {[%emt 0:00:04]} Nxg2 {[%emt 0:03:10]} 18. Kxg2 {[%emt 0:03:12]} a5 {[%emt 0:10:08]} 19. Ba3 {[%emt 0:01:46]} exd4 {[%emt 0:15:02]} 20. fxe4 {[%emt 0:00:07]} fxe4 {[%emt 0:03:07]} 21. Rxf8+ {[%emt 0:00:14]} Kxf8 {[%emt 0:01:22]} 22. Bxd6+ {[%emt 0:00:13]} Kg8 {[%emt 0:00:08]} 23. Qa3 {[%emt 0:10:46]} b5 {[%emt 0:02:46]} 24. Qc5 {[%emt 0:00:47]} d3 {[%emt 0:02:43]} 25. Nf4 {[%emt 0:01:17]} e3 {[%emt 0:00:24]} 26. Be7 {[%emt 0:01:58]} e2 {[%emt 0:04:03]} 27. Nxd3 {[%emt 0:00:34]} bxc4 {[%emt 0:03:30]} 28. Qxc4+ {[%emt 0:08:57]} Kh8 {[%emt 0:00:21]} 29. Nf4 {[%emt 0:00:27]} c5 {[%emt 0:02:55]} 30. Qxe2 {[%emt 0:01:03]} Bb7+ {[%emt 0:01:12]} 31. Nf3 {[%emt 0:00:44]} Qc6 {[%emt 0:00:17]} 32. Kf2 {[%emt 0:07:29]} Re8 {[%emt 0:00:41]} 33. Ne5 {[%emt 0:06:42]} Qc7 {[%emt 0:00:34]} 34. Bd6 {[%emt 0:00:28]} Qc8 {[%emt 0:00:43]} 35. Re1 {[%emt 0:00:21]} Bc6 {[%emt 0:00:29]} 36. Qc4 {[%emt 0:00:34]} Qb7 {[%emt 0:00:28]} 37. Nf7+ {[%emt 0:00:39]} Qxf7 {[%emt 0:00:28]} 38. Qxf7 {[%emt 0:00:04]} Bd4+ {[%emt 0:00:30]} 39. Kf1 {[%emt 0:00:06]} Bb5+ {[%emt 0:00:23]} 40. Kg2 {[%emt 0:00:22]} Bc6+ {[%emt 0:00:23]} 41. Kh3 {[%emt 0:30:08]} Rxe1 {[%emt 0:30:42]} 42. Qf8# {[%emt 0:00:04]} 1-0

[Event "18th Prague Open-A 2019"]
[Site "Prague"]
[Date "2019.01.17"]
[Round "8"]
[White "Roeder, Matthias"]
[Black "Qiu, Mengjie"]
[Result "1/2-1/2"]
[ECO "A05"]
[WhiteElo "2396"]
[BlackElo "2247"]
[Annotator "NA"]
[PlyCount "84"]
[EventDate "2019.01.11"]
[EventType "swiss"]
[EventCountry "CZE"]
[SourceTitle "playchess.com"]
[Source "ChessBase"]
[SourceQuality "1"]
[TimeControl "40/5400+30:1800+30"]

1. Nf3 {[%emt 0:00:00]} Nf6 {[%emt 0:00:00]} 2. g3 {[%emt 0:00:00]} e6 {[%emt 0:00:00]} 3. Bg2 {[%emt 0:00:00]} d5 {[%emt 0:00:03]} 4. O-O {[%emt 0:00:22]} c5 {[%emt 0:00:03]} 5. d4 {[%emt 0:00:29]} Nc6 {[%emt 0:00:18]} 6. c4 {[%emt 0:00:43]} dxc4 {[%emt 0:00:06]} 7. dxc5 {[%emt 0:00:54]} Bxc5 {[%emt 0:07:14]} 8. Qxd8+ {[%emt 0:01:49]} Kxd8 {[%emt 0:00:12]} 9. Nbd2 {[%emt 0:00:45]} Ke7 {[%emt 0:01:16]} 10. Nxc4 {[%emt 0:01:52]} Rd8 {[%emt 0:05:02]} 11. b3 {[%emt 0:05:51]} Bd7 {[%emt 0:04:41]} 12. Bb2 {[%emt 0:00:47]} Rac8 {[%emt 0:04:22]} 13. Rac1 {[%emt 0:03:32]} b6 {[%emt 0:04:12]} 14. a3 {[%emt 0:18:40]} a5 {[%emt 0:02:15]} 15. Rc2 {[%emt 0:14:25]} b5 {[%emt 0:05:40]} 16. Ncd2 {[%emt 0:00:22]} Bb6 {[%emt 0:02:53]} 17. Rfc1 {[%emt 0:03:24]} e5 {[%emt 0:03:19]} 18. e3 {[%emt 0:01:08]} Nd5 {[%emt 0:17:18]} 19. Bxe5 {[%emt 0:12:56]} Nxe3 {[%emt 0:03:28]} 20. fxe3 {[%emt 0:02:10]} Bxe3+ {[%emt 0:00:23]} 21. Kf1 {[%emt 0:01:52]} Nxe5 {[%emt 0:04:06]} 22. Nxe5 {[%emt 0:02:14]} Bxd2 {[%emt 0:00:45]} 23. Rxc8 {[%emt 0:00:31]} Bxc8 {[%emt 0:00:12]} 24. Nc6+ {[%emt 0:01:57]} Kf6 {[%emt 0:01:42]} 25. Rc5 {[%emt 0:02:42]} Re8 {[%emt 0:01:15]} 26. Rc2 {[%emt 0:00:57]} Be3 {[%emt 0:02:15]} 27. Nxa5 {[%emt 0:00:16]} Bf5 {[%emt 0:00:50]} 28. Rc6+ {[%emt 0:00:20]} Ke5 {[%emt 0:11:09]} 29. Bf3 {[%emt 0:03:03]} Bh3+ {[%emt 0:03:49]} 30. Ke2 {[%emt 0:01:42]} Bg1 {[%emt 0:02:55]} 31. Kd2 {[%emt 0:01:45]} Bd7 {[%emt 0:01:53]} 32. Rc7 {[%emt 0:02:07]} Kd6 {[%emt 0:04:09]} 33. Rxd7+ {[%emt 0:01:13]} Kxd7 {[%emt 0:00:13]} 34. Bc6+ {[%emt 0:00:06]} Ke7 {[%emt 0:00:08]} 35. Bxe8 {[%emt 0:00:08]} Kxe8 {[%emt 0:00:05]} 36. h3 {[%emt 0:01:08]} Kd7 {[%emt 0:03:10]} 37. b4 {[%emt 0:05:51]} f5 {[%emt 0:01:57]} 38. Nb3 {[%emt 0:06:23]} Bf2 {[%emt 0:02:16]} 39. g4 {[%emt 0:00:07]} f4 {[%emt 0:00:13]} 40. Kd3 {[%emt 0:01:16]} Be3 {[%emt 0:02:19]} 41. h4 {[%emt 0:30:43]} g6 {[%emt 0:31:24]} 42. Ke4 {[%emt 0:01:07]} Kc6 {[%emt 0:00:00]} 1/2-1/2

[Event "18th Prague Open-A 2019"]
[Site "Prague"]
[Date "2019.01.17"]
[Round "8"]
[White "Zhang, Ziji"]
[Black "Ajay Krishna, S."]
[Result "1/2-1/2"]
[ECO "A58"]
[WhiteElo "2387"]
[BlackElo "2289"]
[Annotator "NA"]
[PlyCount "156"]
[EventDate "2019.01.11"]
[EventType "swiss"]
[EventCountry "CZE"]
[SourceTitle "playchess.com"]
[Source "ChessBase"]
[SourceQuality "1"]
[TimeControl "40/5400+30:1800+30"]

1. d4 {[%emt 0:00:00]} Nf6 {[%emt 0:00:32]} 2. c4 {[%emt 0:00:00]} c5 {[%emt 0:00:16]} 3. d5 {[%emt 0:00:34]} b5 {[%emt 0:00:15]} 4. cxb5 {[%emt 0:00:30]} a6 {[%emt 0:00:10]} 5. bxa6 {[%emt 0:00:16]} e6 {[%emt 0:00:09]} 6. Nc3 {[%emt 0:00:46]} exd5 {[%emt 0:00:40]} 7. Nxd5 {[%emt 0:00:11]} Nxa6 {[%emt 0:00:13]} 8. Bg5 {[%emt 0:01:13]} Be7 {[%emt 0:00:10]} 9. Nxe7 {[%emt 0:00:24]} Qxe7 {[%emt 0:00:04]} 10. Nf3 {[%emt 0:00:33]} O-O {[%emt 0:01:05]} 11. e3 {[%emt 0:00:16]} Bb7 {[%emt 0:00:19]} 12. Be2 {[%emt 0:00:30]} d6 {[%emt 0:02:13]} 13. O-O {[%emt 0:00:44]} h6 {[%emt 0:00:13]} 14. Bh4 {[%emt 0:03:29]} g5 {[%emt 0:03:01]} 15. Bg3 {[%emt 0:00:13]} Ne4 {[%emt 0:00:08]} 16. Nd2 {[%emt 0:02:26]} Nxg3 {[%emt 0:01:48]} 17. hxg3 {[%emt 0:00:07]} d5 {[%emt 0:02:03]} 18. a3 {[%emt 0:06:41]} Nc7 {[%emt 0:06:02]} 19. Re1 {[%emt 0:03:46]} Ne6 {[%emt 0:00:46]} 20. Nf3 {[%emt 0:04:50]} Rfb8 {[%emt 0:07:27]} 21. b4 {[%emt 0:06:29]} cxb4 {[%emt 0:02:26]} 22. axb4 {[%emt 0:00:08]} Qxb4 {[%emt 0:00:55]} 23. Rb1 {[%emt 0:04:18]} Qd6 {[%emt 0:05:08]} 24. Nd4 {[%emt 0:02:52]} Qe5 {[%emt 0:02:21]} 25. Nxe6 {[%emt 0:11:29]} Qxe6 {[%emt 0:06:01]} 26. Bf3 {[%emt 0:02:42]} Bc6 {[%emt 0:07:33]} 27. Qd4 {[%emt 0:01:10]} Qd6 {[%emt 0:03:44]} 28. Rxb8+ {[%emt 0:09:36]} Rxb8 {[%emt 0:00:02]} 29. Rd1 {[%emt 0:01:43]} Rb4 {[%emt 0:06:22]} 30. Qd2 {[%emt 0:01:51]} Qb8 {[%emt 0:04:04]} 31. Bxd5 {[%emt 0:10:16]} Bxd5 {[%emt 0:00:03]} 32. Qxd5 {[%emt 0:00:05]} Rb1 {[%emt 0:00:09]} 33. Kh2 {[%emt 0:00:20]} Rxd1 {[%emt 0:00:11]} 34. Qxd1 {[%emt 0:00:04]} Qb2 {[%emt 0:08:40]} 35. Qd8+ {[%emt 0:03:21]} Kh7 {[%emt 0:00:26]} 36. Qd3+ {[%emt 0:00:07]} Kg8 {[%emt 0:00:13]} 37. Qf5 {[%emt 0:00:11]} Qe2 {[%emt 0:03:06]} 38. g4 {[%emt 0:05:06]} Qb2 {[%emt 0:00:07]} 39. Kh3 {[%emt 0:06:21]} Qa1 {[%emt 0:01:33]} 40. Kg3 {[%emt 0:01:18]} Qc3 {[%emt 0:00:20]} 41. Qd5 {[%emt 0:30:48]} Qc7+ {[%emt 0:33:29]} 42. Kh3 {[%emt 0:00:14]} Qb6 {[%emt 0:02:56]} 43. Qe5 {[%emt 0:00:28]} Qa6 {[%emt 0:07:47]} 44. Kg3 {[%emt 0:03:58]} Qb6 {[%emt 0:09:06]} 45. Kh2 {[%emt 0:01:40]} Qb4 {[%emt 0:01:31]} 46. Qd4 {[%emt 0:00:17]} Qe7 {[%emt 0:00:39]} 47. Kh3 {[%emt 0:02:48]} Qe6 {[%emt 0:03:10]} 48. Kg3 {[%emt 0:00:39]} Qe7 {[%emt 0:00:14]} 49. f4 {[%emt 0:02:08]} gxf4+ {[%emt 0:00:11]} 50. exf4 {[%emt 0:00:05]} Qe1+ {[%emt 0:02:10]} 51. Kf3 {[%emt 0:01:00]} Qf1+ {[%emt 0:00:44]} 52. Qf2 {[%emt 0:00:04]} Qc4 {[%emt 0:01:51]} 53. Qe3 {[%emt 0:00:56]} Qc6+ {[%emt 0:00:39]} 54. Kg3 {[%emt 0:00:06]} Qd7 {[%emt 0:00:00]} 55. Qe5 {[%emt 0:00:00]} Qd3+ {[%emt 0:00:00]} 56. Kh2 {[%emt 0:00:00]} Qd1 {[%emt 0:00:00]} 57. Kh3 {[%emt 0:00:00]} Qd3+ {[%emt 0:00:00]} 58. Kh4 {[%emt 0:00:00]} Qf1 {[%emt 0:00:00]} 59. Qe4 {[%emt 0:00:00]} Qh1+ {[%emt 0:00:00]} 60. Kg3 {[%emt 0:00:00]} Qd1 {[%emt 0:00:00]} 61. Qe8+ {[%emt 0:00:00]} Kg7 {[%emt 0:00:00]} 62. Qe5+ {[%emt 0:00:00]} Kg8 {[%emt 0:00:00]} 63. Qf6 {[%emt 0:00:00]} Qh1 {[%emt 0:00:00]} 64. Qd8+ {[%emt 0:00:00]} Kg7 {[%emt 0:00:00]} 65. Qd4+ {[%emt 0:00:00]} Kg8 {[%emt 0:00:00]} 66. Qf6 {[%emt 0:00:00]} Kf8 {[%emt 0:00:00]} 67. Qh8+ {[%emt 0:00:00]} Ke7 {[%emt 0:00:00]} 68. Qe5+ {[%emt 0:00:00]} Kf8 {[%emt 0:00:00]} 69. f5 {[%emt 0:00:00]} Qc1 {[%emt 0:00:00]} 70. f6 {[%emt 0:00:00]} Qc8 {[%emt 0:00:00]} 71. Qf4 {[%emt 0:00:00]} Qc3+ {[%emt 0:00:00]} 72. Kh2 {[%emt 0:00:00]} Kg8 {[%emt 0:00:00]} 73. g5 {[%emt 0:00:00]} Qc5 {[%emt 0:00:00]} 74. Qe4 {[%emt 0:01:21]} hxg5 {[%emt 0:00:35]} 75. Qe8+ {[%emt 0:00:45]} Qf8 {[%emt 0:00:57]} 76. Qxf8+ {[%emt 0:01:53]} Kxf8 {[%emt 0:00:02]} 77. Kg3 {[%emt 0:00:14]} Ke8 {[%emt 0:00:14]} 78. Kg4 {[%emt 0:00:31]} Kd7 1/2-1/2

[Event "18th Prague Open-A 2019"]
[Site "Prague"]
[Date "2019.01.17"]
[Round "8"]
[White "Cerveny, Petr"]
[Black "Riha, Vojtech"]
[Result "1/2-1/2"]
[ECO "B31"]
[WhiteElo "2318"]
[BlackElo "2145"]
[Annotator "NA"]
[PlyCount "98"]
[EventDate "2019.01.11"]
[EventType "swiss"]
[EventCountry "CZE"]
[SourceTitle "playchess.com"]
[Source "ChessBase"]
[SourceQuality "1"]
[TimeControl "40/5400+30:1800+30"]

1. e4 c5 {[%emt 0:00:00]} 2. Nf3 Nc6 {[%emt 0:00:14]} 3. Bb5 {[%emt 0:00:19]} g6 {[%emt 0:00:10]} 4. Bxc6 {[%emt 0:00:12]} dxc6 {[%emt 0:00:16]} 5. d3 {[%emt 0:00:06]} Bg4 {[%emt 0:01:12]} 6. Nbd2 {[%emt 0:00:15]} Bg7 {[%emt 0:00:51]} 7. h3 {[%emt 0:00:09]} Bxf3 {[%emt 0:00:14]} 8. Nxf3 {[%emt 0:00:09]} e5 {[%emt 0:01:53]} 9. O-O {[%emt 0:03:13]} Qe7 {[%emt 0:03:53]} 10. Qe1 {[%emt 0:06:48]} Nf6 {[%emt 0:03:49]} 11. Qc3 {[%emt 0:00:24]} Nd7 {[%emt 0:01:06]} 12. Bg5 {[%emt 0:05:38]} Qd6 {[%emt 0:08:26]} 13. Nd2 {[%emt 0:01:47]} O-O {[%emt 0:03:12]} 14. a4 {[%emt 0:03:08]} h6 {[%emt 0:05:26]} 15. Be3 {[%emt 0:02:55]} Kh7 {[%emt 0:02:51]} 16. a5 {[%emt 0:03:29]} f5 {[%emt 0:03:38]} 17. Nb3 {[%emt 0:00:46]} b6 {[%emt 0:01:09]} 18. f3 {[%emt 0:00:15]} f4 {[%emt 0:07:19]} 19. Bf2 {[%emt 0:00:18]} g5 {[%emt 0:00:13]} 20. Ra2 {[%emt 0:00:27]} h5 {[%emt 0:01:24]} 21. Rfa1 {[%emt 0:00:46]} Rad8 {[%emt 0:01:58]} 22. axb6 {[%emt 0:00:57]} axb6 {[%emt 0:00:05]} 23. Ra7 {[%emt 0:01:31]} Qg6 {[%emt 0:04:29]} 24. Kf1 {[%emt 0:22:01]} Rf7 {[%emt 0:07:35]} 25. Ke2 {[%emt 0:00:59]} Nf8 {[%emt 0:09:30]} 26. R1a6 {[%emt 0:01:25]} Rb8 {[%emt 0:02:18]} 27. Nd2 {[%emt 0:06:07]} g4 {[%emt 0:09:24]} 28. hxg4 {[%emt 0:05:12]} hxg4 {[%emt 0:00:17]} 29. Rxf7 {[%emt 0:04:45]} Qxf7 {[%emt 0:00:14]} 30. Qb3 {[%emt 0:00:36]} Qh5 {[%emt 0:08:13]} 31. Ra7 {[%emt 0:06:22]} g3 {[%emt 0:06:03]} 32. Bg1 {[%emt 0:00:47]} Kh8 {[%emt 0:07:31]} 33. c3 {[%emt 0:02:15]} Nh7 {[%emt 0:00:55]} 34. Qe6 {[%emt 0:05:38]} Ng5 {[%emt 0:00:35]} 35. Qe7 {[%emt 0:00:01]} Rg8 {[%emt 0:00:23]} 36. Rb7 {[%emt 0:03:12]} Qh1 {[%emt 0:00:39]} 37. Kf1 {[%emt 0:00:23]} Qh6 {[%emt 0:00:28]} 38. Ra7 {[%emt 0:01:41]} Nh3 {[%emt 0:00:24]} 39. gxh3 {[%emt 0:01:31]} Qxh3+ {[%emt 0:00:05]} 40. Ke1 {[%emt 0:00:06]} Qh1 {[%emt 0:00:07]} 41. Nf1 {[%emt 0:38:19]} g2 {[%emt 0:30:53]} 42. Qg5 {[%emt 0:00:15]} gxf1=Q+ {[%emt 0:00:00]} 43. Kxf1 {[%emt 0:00:00]} Qxf3+ {[%emt 0:00:00]} 44. Ke1 {[%emt 0:00:00]} Qh1 {[%emt 0:00:00]} 45. Rc7 {[%emt 0:00:00]} c4 {[%emt 0:00:00]} 46. Rxc6 {[%emt 0:00:00]} Bf8 {[%emt 0:00:00]} 47. Qf6+ {[%emt 0:00:00]} Bg7 {[%emt 0:00:00]} 48. Qg5 {[%emt 0:00:00]} Bf8 {[%emt 0:00:00]} 49. Qf6+ {[%emt 0:00:00]} Bg7 {[%emt 0:00:00]} 1/2-1/2

[Event "18th Prague Open-A 2019"]
[Site "Prague"]
[Date "2019.01.17"]
[Round "8"]
[White "Zhang, Xiaopeng"]
[Black "Krivonosov, Oleg"]
[Result "1/2-1/2"]
[ECO "D30"]
[WhiteElo "2299"]
[BlackElo "2390"]
[Annotator "NA"]
[PlyCount "112"]
[EventDate "2019.01.11"]
[EventType "swiss"]
[EventCountry "CZE"]
[SourceTitle "playchess.com"]
[Source "ChessBase"]
[SourceQuality "1"]
[TimeControl "40/5400+30:1800+30"]

1. d4 {[%emt 0:00:00]} d5 2. c4 {[%emt 0:00:00]} e6 {[%emt 0:00:00]} 3. Nf3 {[%emt 0:00:00]} Nf6 {[%emt 0:00:02]} 4. g3 {[%emt 0:00:00]} Bb4+ {[%emt 0:00:08]} 5. Bd2 {[%emt 0:02:34]} Be7 {[%emt 0:00:10]} 6. Bg2 {[%emt 0:00:17]} O-O {[%emt 0:00:09]} 7. O-O {[%emt 0:01:52]} c6 {[%emt 0:00:41]} 8. b3 {[%emt 0:00:46]} Nbd7 {[%emt 0:00:27]} 9. Nc3 {[%emt 0:00:43]} b6 {[%emt 0:00:22]} 10. Qc2 {[%emt 0:00:21]} Bb7 {[%emt 0:00:15]} 11. Bf4 {[%emt 0:04:06]} Rc8 {[%emt 0:03:44]} 12. Rfd1 {[%emt 0:01:11]} c5 {[%emt 0:03:34]} 13. Nb5 {[%emt 0:06:38]} cxd4 {[%emt 0:02:21]} 14. Nd6 {[%emt 0:10:00]} Bxd6 {[%emt 0:03:51]} 15. Bxd6 {[%emt 0:00:52]} Re8 {[%emt 0:00:19]} 16. Nxd4 {[%emt 0:00:49]} Nc5 17. Bxc5 {[%emt 0:04:31]} bxc5 {[%emt 0:03:28]} 18. Nb5 {[%emt 0:03:11]} Qb6 {[%emt 0:05:29]} 19. e3 {[%emt 0:02:30]} Red8 {[%emt 0:02:50]} 20. Rd2 {[%emt 0:13:25]} Bc6 {[%emt 0:07:19]} 21. Nc3 {[%emt 0:04:19]} d4 {[%emt 0:04:55]} 22. exd4 {[%emt 0:01:38]} Bxg2 {[%emt 0:01:20]} 23. Kxg2 {[%emt 0:00:40]} cxd4 {[%emt 0:01:19]} 24. Ne4 {[%emt 0:02:14]} Qc6 {[%emt 0:04:18]} 25. Re1 {[%emt 0:01:18]} h6 {[%emt 0:11:37]} 26. f3 {[%emt 0:03:03]} Nd5 {[%emt 0:01:23]} 27. Qd1 {[%emt 0:00:34]} Ne7 {[%emt 0:04:14]} 28. Rxd4 {[%emt 0:00:27]} Qb6 {[%emt 0:00:18]} 29. Nd6 {[%emt 0:07:18]} Rc6 {[%emt 0:05:09]} 30. Nb5 {[%emt 0:00:12]} Rxd4 {[%emt 0:00:28]} 31. Qxd4 {[%emt 0:00:09]} Qxd4 {[%emt 0:00:32]} 32. Nxd4 {[%emt 0:00:05]} Rd6 {[%emt 0:00:06]} 33. Re4 {[%emt 0:02:15]} Kf8 {[%emt 0:00:42]} 34. c5 {[%emt 0:01:23]} Rd5 {[%emt 0:01:29]} 35. b4 {[%emt 0:00:14]} e5 {[%emt 0:02:39]} 36. Nb3 {[%emt 0:00:22]} f5 37. Rc4 {[%emt 0:00:59]} a6 {[%emt 0:02:57]} 38. Kf2 {[%emt 0:01:24]} Rd1 39. Rc1 {[%emt 0:02:07]} Rxc1 {[%emt 0:02:18]} 40. Nxc1 {[%emt 0:00:05]} Nd5 {[%emt 0:00:06]} 41. a3 {[%emt 0:30:49]} Ke7 {[%emt 0:30:38]} 42. Ke2 {[%emt 0:04:35]} g5 {[%emt 0:00:37]} 43. Kd3 {[%emt 0:01:04]} h5 {[%emt 0:00:15]} 44. Ne2 {[%emt 0:01:56]} g4 {[%emt 0:00:39]} 45. fxg4 {[%emt 0:07:59]} hxg4 {[%emt 0:00:09]} 46. Nc3 {[%emt 0:01:45]} Nf6 {[%emt 0:01:30]} 47. Ke3 {[%emt 0:00:30]} Kd7 {[%emt 0:00:20]} 48. Kd3 f4 {[%emt 0:01:54]} 49. gxf4 {[%emt 0:06:44]} exf4 {[%emt 0:00:09]} 50. Ne4 {[%emt 0:02:23]} Nh5 {[%emt 0:01:20]} 51. a4 {[%emt 0:00:00]} g3 {[%emt 0:00:00]} 52. hxg3 {[%emt 0:00:00]} fxg3 {[%emt 0:00:00]} 53. Ke3 {[%emt 0:00:00]} Kc6 {[%emt 0:00:00]} 54. Kf3 {[%emt 0:00:00]} g2 {[%emt 0:00:00]} 55. Kxg2 {[%emt 0:00:00]} Nf4+ {[%emt 0:00:00]} 56. Kf3 {[%emt 0:00:00]} Nd5 {[%emt 0:00:00]} 1/2-1/2

[Event "18th Prague Open-A 2019"]
[Site "Prague"]
[Date "2019.01.17"]
[Round "8"]
[White "Gomes, Mary Ann"]
[Black "Kacharava, Nikolozi"]
[Result "1/2-1/2"]
[ECO "A06"]
[WhiteElo "2296"]
[BlackElo "2397"]
[Annotator "NA"]
[PlyCount "103"]
[EventDate "2019.01.11"]
[EventType "swiss"]
[EventCountry "CZE"]
[SourceTitle "playchess.com"]
[Source "ChessBase"]
[SourceQuality "1"]
[TimeControl "40/5400+30:1800+30"]

1. Nf3 {[%emt 0:00:00]} d5 {[%emt 0:00:00]} 2. g3 {[%emt 0:00:00]} Nf6 {[%emt 0:00:00]} 3. Bg2 {[%emt 0:00:00]} g6 {[%emt 0:00:30]} 4. b3 {[%emt 0:00:13]} Bg7 {[%emt 0:00:37]} 5. Bb2 {[%emt 0:00:07]} c5 {[%emt 0:00:24]} 6. e3 {[%emt 0:02:00]} Nc6 {[%emt 0:01:45]} 7. Ne5 {[%emt 0:03:39]} O-O {[%emt 0:06:46]} 8. O-O {[%emt 0:01:59]} Qc7 {[%emt 0:04:46]} 9. Nxc6 {[%emt 0:04:33]} bxc6 {[%emt 0:01:36]} 10. d3 {[%emt 0:00:53]} e5 {[%emt 0:02:21]} 11. c4 {[%emt 0:08:09]} d4 {[%emt 0:05:51]} 12. exd4 {[%emt 0:00:34]} cxd4 {[%emt 0:01:41]} 13. Ba3 {[%emt 0:08:08]} Re8 {[%emt 0:04:12]} 14. Nd2 {[%emt 0:01:04]} Rb8 {[%emt 0:11:01]} 15. b4 {[%emt 0:00:30]} Bg4 {[%emt 0:08:35]} 16. Qa4 {[%emt 0:12:36]} Be2 {[%emt 0:04:57]} 17. Qxc6 {[%emt 0:09:34]} Qxc6 {[%emt 0:01:37]} 18. Bxc6 {[%emt 0:00:07]} Re6 {[%emt 0:05:32]} 19. Rfe1 {[%emt 0:01:50]} Bxd3 {[%emt 0:00:18]} 20. b5 {[%emt 0:00:44]} a6 {[%emt 0:10:35]} 21. Nb3 {[%emt 0:08:07]} axb5 {[%emt 0:11:30]} 22. Bxb5 {[%emt 0:00:07]} Bc2 {[%emt 0:00:46]} 23. Nc5 {[%emt 0:02:03]} Reb6 {[%emt 0:00:28]} 24. Bb4 {[%emt 0:03:56]} Rxb5 {[%emt 0:02:30]} 25. cxb5 {[%emt 0:00:29]} Nd5 {[%emt 0:02:20]} 26. a3 {[%emt 0:03:21]} Rxb5 {[%emt 0:02:43]} 27. Rac1 {[%emt 0:04:41]} Nxb4 {[%emt 0:03:20]} 28. axb4 {[%emt 0:01:39]} d3 {[%emt 0:00:24]} 29. Rcd1 {[%emt 0:07:42]} Bxd1 {[%emt 0:02:25]} 30. Rxd1 {[%emt 0:00:06]} Rxb4 {[%emt 0:00:07]} 31. Rxd3 {[%emt 0:00:09]} Rb8 {[%emt 0:03:55]} 32. g4 {[%emt 0:00:09]} Rc8 {[%emt 0:01:21]} 33. Rd5 {[%emt 0:01:01]} f6 {[%emt 0:00:39]} 34. h4 {[%emt 0:02:28]} h6 {[%emt 0:00:51]} 35. Kg2 {[%emt 0:00:44]} Rc7 {[%emt 0:00:25]} 36. Kf3 {[%emt 0:06:04]} Kf7 {[%emt 0:00:15]} 37. Ke4 {[%emt 0:00:45]} Bf8 {[%emt 0:00:32]} 38. Rd7+ {[%emt 0:00:54]} Rxd7 {[%emt 0:00:03]} 39. Nxd7 {[%emt 0:00:05]} Ke7 {[%emt 0:00:42]} 40. Nc5 {[%emt 0:03:43]} Kd6 {[%emt 0:00:39]} 41. Nb7+ {[%emt 0:32:16]} Ke6 {[%emt 0:03:29]} 42. Nd8+ {[%emt 0:00:00]} Ke7 {[%emt 0:05:20]} 43. Nb7 {[%emt 0:00:00]} Kd7 {[%emt 0:06:40]} 44. h5 {[%emt 0:00:00]} gxh5 {[%emt 0:01:01]} 45. gxh5 {[%emt 0:00:00]} Bb4 {[%emt 0:00:44]} 46. Kf5 {[%emt 0:00:00]} Kc7 {[%emt 0:00:52]} 47. Kxf6 {[%emt 0:00:00]} Kxb7 {[%emt 0:00:31]} 48. Kxe5 {[%emt 0:00:00]} Kc6 {[%emt 0:00:08]} 49. f4 {[%emt 0:00:00]} Bc3+ {[%emt 0:00:23]} 50. Ke4 {[%emt 0:00:00]} Kd6 {[%emt 0:00:06]} 51. f5 {[%emt 0:00:00]} Ke7 {[%emt 0:00:04]} 52. f6+ {[%emt 0:00:00]} 1/2-1/2

[Event "18th Prague Open-A 2019"]
[Site "Prague"]
[Date "2019.01.17"]
[Round "8"]
[White "Csiki, Endre"]
[Black "Low, Zhen Yu Cyrus"]
[Result "0-1"]
[ECO "B15"]
[WhiteElo "2264"]
[BlackElo "2385"]
[Annotator "NA"]
[PlyCount "96"]
[EventDate "2019.01.11"]
[EventType "swiss"]
[EventCountry "CZE"]
[SourceTitle "playchess.com"]
[Source "ChessBase"]
[SourceQuality "1"]
[TimeControl "40/5400+30:1800+30"]

1. e4 {[%emt 0:00:00]} c6 {[%emt 0:00:00]} 2. d4 {[%emt 0:00:00]} d5 {[%emt 0:00:00]} 3. Nc3 {[%emt 0:00:00]} dxe4 {[%emt 0:00:00]} 4. Nxe4 {[%emt 0:00:00]} Nf6 {[%emt 0:00:00]} 5. Nxf6+ {[%emt 0:00:00]} exf6 {[%emt 0:00:00]} 6. c3 {[%emt 0:00:21]} Bd6 {[%emt 0:00:02]} 7. Bd3 {[%emt 0:00:13]} O-O {[%emt 0:00:09]} 8. Qc2 {[%emt 0:00:11]} Re8+ {[%emt 0:00:08]} 9. Ne2 {[%emt 0:00:05]} h5 {[%emt 0:00:07]} 10. Be3 {[%emt 0:10:16]} Be6 {[%emt 0:05:10]} 11. c4 {[%emt 0:09:40]} a5 {[%emt 0:11:11]} 12. O-O {[%emt 0:02:59]} h4 {[%emt 0:02:32]} 13. Nc3 {[%emt 0:16:36]} Na6 {[%emt 0:21:07]} 14. Qe2 {[%emt 0:07:00]} f5 {[%emt 0:08:35]} 15. d5 {[%emt 0:08:59]} f4 {[%emt 0:04:51]} 16. dxe6 {[%emt 0:03:38]} Rxe6 {[%emt 0:00:39]} 17. Ne4 {[%emt 0:13:31]} fxe3 {[%emt 0:00:51]} 18. Rad1 {[%emt 0:01:47]} Qe7 {[%emt 0:15:03]} 19. Nxd6 {[%emt 0:03:47]} Rxd6 {[%emt 0:00:14]} 20. Qxe3 {[%emt 0:00:38]} Qxe3 {[%emt 0:00:34]} 21. fxe3 {[%emt 0:00:10]} Rad8 {[%emt 0:00:51]} 22. Bc2 {[%emt 0:00:43]} Kf8 {[%emt 0:08:15]} 23. Rxd6 {[%emt 0:02:03]} Rxd6 {[%emt 0:00:01]} 24. Rd1 {[%emt 0:00:16]} Rxd1+ {[%emt 0:01:09]} 25. Bxd1 {[%emt 0:00:06]} Ke7 {[%emt 0:00:04]} 26. Kf2 {[%emt 0:00:20]} Nb4 {[%emt 0:00:59]} 27. a3 {[%emt 0:04:02]} Nd3+ {[%emt 0:00:20]} 28. Ke2 {[%emt 0:00:42]} Nxb2 {[%emt 0:00:40]} 29. Bb3 {[%emt 0:00:55]} a4 {[%emt 0:00:47]} 30. Ba2 {[%emt 0:00:06]} Kd6 {[%emt 0:00:10]} 31. Kd2 {[%emt 0:00:05]} Kc5 {[%emt 0:00:09]} 32. Kc3 {[%emt 0:00:18]} Nd1+ {[%emt 0:00:02]} 33. Kd2 {[%emt 0:00:56]} Nf2 {[%emt 0:00:18]} 34. h3 {[%emt 0:02:01]} Ne4+ {[%emt 0:03:05]} 35. Kd3 {[%emt 0:00:05]} Nd6 {[%emt 0:00:04]} 36. Kc3 {[%emt 0:00:15]} f6 {[%emt 0:00:05]} 37. Kd3 {[%emt 0:00:47]} Nf7 {[%emt 0:02:31]} 38. Ke4 {[%emt 0:00:56]} Ne5 {[%emt 0:00:20]} 39. Kf5 {[%emt 0:00:06]} Nxc4 {[%emt 0:00:01]} 40. Kg6 {[%emt 0:00:18]} Nxe3 {[%emt 0:05:26]} 41. Kxg7 {[%emt 0:30:09]} Nxg2 {[%emt 0:30:01]} 42. Kxf6 {[%emt 0:00:17]} Nf4 {[%emt 0:00:06]} 43. Kg5 {[%emt 0:00:23]} Nxh3+ {[%emt 0:00:01]} 44. Kxh4 {[%emt 0:00:08]} Nf2 {[%emt 0:00:18]} 45. Kg3 {[%emt 0:00:05]} Ne4+ {[%emt 0:00:23]} 46. Kf3 {[%emt 0:00:06]} Nc3 {[%emt 0:00:05]} 47. Bg8 {[%emt 0:00:06]} Nb5 {[%emt 0:00:06]} 48. Ke3 {[%emt 0:00:05]} Nxa3 {[%emt 0:00:04] Kd4+} 0-1